fUSD/lending_fUSD_20250125
["ID","MTS","AMOUNT","RATE_DAILY","PERIOD"]
[350297015,1737774644599,-500.0,0.00017258,2]
[350297016,1737774644610,-572.35,0.00017258,2]
[350297017,1737774644619,-500.0,0.00017258,2]
[350297018,1737774644629,-611.68,0.00017258,2]
[350297019,1737774644639,-500.0,0.00017258,2]
[350297020,1737774644650,-500.0,0.00017258,2]
[350297021,1737774644659,-500.0,0.00017258,2]
[350297022,1737774644669,-512.24,0.00017258,2]
[350297023,1737774644679,-500.0,0.00017258,2]
[350297024,1737774644689,-500.0,0.00017258,2]
[350297025,1737774644698,-160.59942493,0.00017258,2]
[350297026,1737774644708,-500.0,0.00017258,2]
[350297027,1737774644718,-500.0,0.00017258,2]
[350297028,1737774644728,-500.0,0.00017258,2]
[350297029,1737774644737,-500.0,0.00017258,2]
[350297031,1737774644748,-472.57022668,0.00017258,2]
[350297033,1737774644757,-500.0,0.00017258,2]
[350297035,1737774644767,-500.0,0.00017258,2]
[350297037,1737774644776,-500.0,0.00017258,2]
[350297039,1737774644786,-500.0,0.00017258,2]
[350297041,1737774644795,-154.24,0.00017259,2]
[350297043,1737774644805,-500.0,0.00017259,2]
[350297045,1737774644815,-500.0,0.00017259,2]
[350297047,1737774644824,-500.0,0.00017259,2]
[350297048,1737774644833,-500.0,0.00017259,2]
[350297050,1737774644842,-401.7,0.00017259,2]
[350297052,1737774644852,-298.76,0.00017259,2]
[350297054,1737774644861,-560.0,0.00017259,2]
[350297057,1737774644872,-500.0,0.00017259,2]
[350297059,1737774644881,-500.0,0.00017259,2]
[350297061,1737774644891,-500.0,0.00017259,2]
[350297062,1737774644900,-500.0,0.00017259,2]
[350297064,1737774644909,-164.16,0.00017259,2]
[350297066,1737774644918,-500.0,0.00017259,2]
[350297068,1737774644928,-369.64,0.00017259,2]
[350297070,1737774644938,-2497.59589118,0.0001732,2]
[350297072,1737774644947,-518.79766839,0.00017395,2]
[350297074,1737774644959,-522.93733891,0.00017395,2]
[350297076,1737774644969,-500.0,0.00017395,2]
[350297078,1737774644978,-500.0,0.00017395,2]
[350297080,1737774644988,-500.0,0.00017395,2]
[350297082,1737774644997,-500.0,0.00017395,2]
[350297084,1737774645006,-500.0,0.00017395,2]
[350297085,1737774645015,-500.0,0.00017395,2]
[350297087,1737774645025,-500.0,0.00017395,2]
[350297089,1737774645034,-500.0,0.00017395,2]
[350297091,1737774645043,-500.0,0.00017395,2]
[350297094,1737774645053,-500.0,0.00017395,2]
[350297096,1737774645062,-500.0,0.00017395,2]
[350297098,1737774645071,-500.0,0.00017395,2]
[350297100,1737774645080,-500.0,0.00017395,2]
[350297102,1737774645089,-426.34,0.00017395,2]
[350297104,1737774645099,-500.0,0.00017395,2]
[350297106,1737774645108,-500.0,0.00017395,2]
[350297108,1737774645117,-500.0,0.00017395,2]
[350297110,1737774645126,-495.26,0.00017395,2]
[350297112,1737774645135,-245.77,0.00017395,2]
[350297113,1737774645144,-231.45635258,0.00017395,2]
[350297115,1737774645153,-500.0,0.00017395,2]
[350297117,1737774645162,-500.0,0.00017395,2]
[350297119,1737774645171,-265.14,0.00017396,2]
[350297121,1737774645180,-500.0,0.00017396,2]
[350297123,1737774645189,-500.0,0.00017396,2]
[350297125,1737774645199,-500.0,0.00017396,2]
[350297127,1737774645208,-500.0,0.00017396,2]
[350297129,1737774645217,-159.68,0.00017396,2]
[350297131,1737774645227,-416.3,0.00017396,2]
[350297133,1737774645236,-500.0,0.00017396,2]
[350297136,1737774645246,-500.0,0.00017396,2]
[350297138,1737774645256,-500.0,0.00017532,2]
[350297140,1737774645266,-500.0,0.00017532,2]
[350297142,1737774645275,-500.0,0.00017532,2]
[350297144,1737774645284,-500.0,0.00017532,2]
[350297146,1737774645293,-500.0,0.00017532,2]
[350297147,1737774645301,-500.0,0.00017532,2]
[350297149,1737774645310,-555.7,0.00017532,2]
[350297151,1737774645320,-500.0,0.00017532,2]
[350297153,1737774645328,-500.0,0.00017532,2]
[350297155,1737774645337,-538.2,0.00017532,2]
[350297157,1737774645346,-500.0,0.00017532,2]
[350297159,1737774645356,-429.24,0.00017533,2]
[350297161,1737774645365,-500.0,0.00017533,2]
[350297163,1737774645373,-500.0,0.00017533,2]
[350297165,1737774645382,-245.54,0.00017533,2]
[350297167,1737774645391,-188.68,0.00017533,2]
[350297169,1737774645400,-441.03,0.00017533,2]
[350297171,1737774645410,-500.0,0.00017669,2]
[350297173,1737774645419,-500.0,0.00017669,2]
[350297175,1737774645428,-462.26469755,0.00017669,2]
[350297177,1737774645437,-500.0,0.00017669,2]
[350297179,1737774645447,-500.0,0.00017669,2]
[350297181,1737774645456,-500.0,0.00017669,2]
[350297183,1737774645465,-256.45,0.00017669,2]
[350297185,1737774645474,-500.0,0.0001767,2]
[350297200,1737774645594,-565.25,0.0001767,2]
[350297202,1737774645608,-4923.68527488,0.0001768,2]
[350297204,1737774645618,-500.0,0.00017806,2]
[350297206,1737774645628,-500.0,0.00017806,2]
[350297208,1737774645638,-500.0,0.00017806,2]
[350297210,1737774645647,-500.0,0.00017806,2]
[350297212,1737774645657,-500.0,0.00017806,2]
[350297214,1737774645666,-500.0,0.00017807,2]
[350297216,1737774645676,-1903.80379298,0.00017861,2]
[350297218,1737774645685,-1903.80379299,0.00017861,2]
[350297219,1737774645694,-1000.0,0.00017864,2]
[350297222,1737774645704,-2497.59589118,0.00017892,2]
[350297224,1737774645714,-216.07360089,0.000179,2]
[350297226,1737774645724,-500.0,0.00017943,2]
[350297228,1737774645733,-316.50919104,0.00017943,2]
[350297230,1737774645742,-364.65,0.00017943,2]
[350297232,1737774645752,-500.0,0.00017943,2]
[350297234,1737774645761,-212.9,0.00017944,2]
[350297236,1737774645769,-216.07360064,0.00018038,2]
[350297238,1737774645779,-500.0,0.0001808,2]
[350297240,1737774645788,-170.03,0.00018082,2]
[350297242,1737774645797,-1176.846,0.00018095,2]
[350297244,1737774645805,-500.0,0.00018164,2]
[350297246,1737774645815,-500.0,0.00018164,2]
[350297249,1737774645824,-216.07360064,0.00018176,2]
[350297251,1737774645833,-500.0,0.00018217,2]
[350297253,1737774645842,-4923.68527488,0.00018283,2]
[350297255,1737774645852,-216.07360064,0.00018314,2]
[350297257,1737774645861,-443.4,0.00018354,2]
[350297259,1737774645870,-654.13,0.00018388,2]
[350297261,1737774645879,-216.07360064,0.00018452,2]
[350297263,1737774645888,-2497.59589118,0.00018465,2]
[350297265,1737774645896,-216.07360064,0.0001859,2]
[350297267,1737774645903,-216.07360064,0.00018728,2]
[350297269,1737774645913,-170.03,0.00018751,2]
[350297271,1737774645924,-216.07360064,0.00018866,2]
[350297273,1737774645933,-4923.68527488,0.00018886,2]
[350297275,1737774645944,-500.0,0.00018986,2]
[350297276,1737774645953,-650.0,0.00019,2]
[350297278,1737774645964,-216.07360064,0.00019003,2]
[350297280,1737774645973,-2497.59589118,0.00019037,2]
[350297282,1737774645983,-216.07360064,0.00019141,2]
[350297284,1737774645992,-216.07360064,0.00019279,2]
[350297286,1737774646002,-152.95194885,0.00019313,2]
[350297288,1737774646011,-194.12,0.00019337,2]
[350297290,1737774646021,-250.0,0.00019337,2]
[350297292,1737774646030,-250.0,0.0001935,2]
[350297294,1737774646038,-216.07360064,0.00019417,2]
[350297296,1737774646047,-170.03,0.0001942,2]
[350297298,1737774646057,-4923.68527488,0.00019488,2]
[350297300,1737774646066,-216.07360064,0.00019555,2]
[350297302,1737774646076,-23900.0,0.00019577,2]
[350297304,1737774646085,-2497.59589118,0.0001961,2]
[350297305,1737774646094,-171.51,0.00019649,2]
[350297307,1737774646103,-1000.0,0.00019849,2]
[350297309,1737774646113,-552.59,0.0002,2]
[350297311,1737774646123,-150.0,0.0002,2]
[350297313,1737774646132,-1002.72,0.00020015,2]
[350297315,1737774646141,-250.0,0.00020051,2]
[350297317,1737774646151,-170.03,0.00020089,2]
[350297319,1737774646161,-4923.68527488,0.00020091,2]
[350297321,1737774646170,-2497.59589118,0.00020182,2]
[350297323,1737774646181,-500.0,0.00020356,2]
[350297325,1737774646191,-152.0,0.0002041,3]
[350297327,1737774646201,-177.55,0.00020548,2]
[350297329,1737774646210,-654.13,0.00020652,2]
[350297331,1737774646220,-4923.68527488,0.00020694,2]
[350297333,1737774646229,-153.34,0.00020746,2]
[350297335,1737774646238,-782.0,0.00020746,2]
[350297337,1737774646248,-1262.0,0.00020746,2]
[350297339,1737774646257,-2497.59589118,0.00020755,2]
[350297341,1737774646266,-170.03,0.00020758,2]
[350297343,1737774646275,-613.33,0.00020928,2]
[350297345,1737774646286,-700.0,0.00021,2]
[350297347,1737774646296,-150.0,0.00021019,2]
[350297349,1737774646305,-2648.62448401,0.00021043,2]
[350297351,1737774646315,-152.0,0.00021075,4]
[350297353,1737774646325,-6016.88489,0.000211,8]
[350297355,1737774646334,-879.31,0.00021178,2]
[350297357,1737774646344,-4923.68527488,0.00021297,2]
[350297359,1737774646353,-2497.59589118,0.00021327,2]
[350297361,1737774646363,-2127.0,0.0002134,2]
[350297363,1737774646372,-10359.0,0.000214,2]
[350297365,1737774646382,-5000.0,0.000215,15]
[350297367,1737774646391,-248.520288,0.0002156,2]
[350297369,1737774646401,-2127.0,0.0002156,2]
[350297371,1737774646410,-300.88,0.00021596,2]
[350297373,1737774646419,-151.85,0.00021596,2]
[350297375,1737774646429,-150.51,0.00021596,2]
[350297377,1737774646439,-881.78,0.00021596,2]
[350297379,1737774646449,-300.27,0.00021596,2]
[350297380,1737774646460,-174.16269916,0.00021732,2]
[350297383,1737774646470,-152.0,0.00021741,5]
[350297385,1737774646479,-194.12,0.00021754,2]
[350297387,1737774646489,-150.0,0.00021775,2]
[350297389,1737774646498,-2127.0,0.0002178,2]
[350297391,1737774646508,-1560.97084,0.0002178,2]
[350297393,1737774646518,-1296.28985866,0.00021786,2]
[350297395,1737774646528,-5246.41899307,0.000218,2]
[350297397,1737774646539,-4015.1932,0.000218,2]
[350297398,1737774646548,-150.0,0.00021828,2]
[350297400,1737774646558,-150.0,0.0002183,2]
[350297402,1737774646568,-1000.0,0.00021834,2]
[350297404,1737774646577,-150.0,0.00021837,2]
[350297406,1737774646587,-150.0,0.00021843,2]
[350297409,1737774646601,-2002.5837,0.0002189,2]
[350297411,1737774646611,-2000.0,0.0002189,2]
[350297413,1737774646620,-150.0,0.00021895,2]
[350297415,1737774646630,-512.60227768,0.00021899,2]
[350297417,1737774646639,-500.0,0.00021899,2]
[350297419,1737774646648,-1104883.89854821,0.000219,2]
[350297431,1737774646762,-255.22063566,0.000219,2]
[350297449,1737774646919,-500.0,0.00016847,2]
[350297451,1737774646929,-500.0,0.00016847,2]
[350297453,1737774646938,-216.07360064,0.00019693,2]
[350297455,1737774646948,-216.07360064,0.00019831,2]
[350297456,1737774646957,-216.07360064,0.00019969,2]
[350297457,1737774646968,-216.07360064,0.00020107,2]
[350297458,1737774646977,-216.07360064,0.00020245,2]
[350297459,1737774646986,-216.07360064,0.00020383,2]
[350297460,1737774646995,-216.07360064,0.00020521,2]
[350297461,1737774647004,-216.07360064,0.00020659,2]
[350297462,1737774647014,-216.07360064,0.00020797,2]
[350297463,1737774647024,-216.07360064,0.00020934,2]
[350297464,1737774647033,-216.07360064,0.00021072,2]
[350297465,1737774647042,-216.07360064,0.0002121,2]
[350297466,1737774647051,-216.07360064,0.00021348,2]
[350297467,1737774647061,-9997.84040943,0.000219,2]
[350297468,1737774647073,-211542.0834647,0.000219,2]
[350297469,1737774647082,-100671.5964,0.000219,2]
[350297470,1737774647092,-244.47235882,0.000219,2]
[350297471,1737774647101,-3078.85303435,0.000219,2]
[350297472,1737774647110,-4923.68527488,0.000219,2]
[350297473,1737774647120,-2497.59589118,0.000219,2]
[350297474,1737774647131,-223.20852859,0.000219,2]
[350297475,1737774647142,-348.51302543,0.000219,2]
[350297476,1737774647152,-1055.0,0.000219,2]
[350297477,1737774647161,-150.0,0.00021908,2]
[350297478,1737774647171,-500.0,0.00021917,2]
[350297479,1737774647181,-2000.0,0.00021917,30]
[350297480,1737774647190,-1000.0,0.00021918,2]
[350297481,1737774647201,-1000.0,0.00021918,2]
[350297482,1737774647210,-1000.0,0.00021918,2]
[350297483,1737774647220,-1000.0,0.00021918,2]
[350297484,1737774647230,-1000.0,0.00021918,2]
[350297485,1737774647240,-1000.0,0.00021918,2]
[350297486,1737774647250,-1000.0,0.00021918,2]
[350297487,1737774647259,-1000.0,0.00021918,2]
[350297488,1737774647269,-1000.0,0.00021918,2]
[350297489,1737774647278,-1000.0,0.00021918,2]
[350297490,1737774647288,-1000.0,0.00021918,2]
[350297491,1737774647299,-1000.0,0.00021918,2]
[350297492,1737774647308,-1000.0,0.00021918,2]
[350297493,1737774647317,-1000.0,0.00021918,2]
[350297494,1737774647326,-1000.0,0.00021918,2]
[350297495,1737774647335,-1000.0,0.00021918,2]
[350297496,1737774647345,-1000.0,0.00021918,2]
[350297497,1737774647354,-1000.0,0.00021918,2]
[350297498,1737774647363,-1000.0,0.00021918,2]
[350297499,1737774647373,-1071.0,0.00021918,2]
[350297500,1737774647383,-150.0,0.00021918,2]
[350297501,1737774647393,-150.0,0.00021918,2]
[350297502,1737774647403,-150.0,0.00021921,2]
[350297503,1737774647412,-1018.8361527,0.00021963,2]
[350297504,1737774647421,-150.0,0.0002197,2]
[350297505,1737774647431,-150.0,0.00021973,4]
[350297506,1737774647440,-150.0,0.00021973,4]
[350297507,1737774647449,-150.0,0.00021973,4]
[350297508,1737774647459,-150.0,0.00021973,4]
[350297509,1737774647468,-207.6477414,0.00021985,2]
[350297510,1737774647477,-238.1340947,0.00021985,2]
[350297511,1737774647487,-268.620448,0.00021985,2]
[350297512,1737774647496,-299.1068013,0.00021985,2]
[350297513,1737774647506,-329.5931546,0.00021985,2]
[350297514,1737774647515,-912.7138878,0.00021985,2]
[350297515,1737774647525,-1046.7163953,0.00021985,2]
[350297516,1737774647534,-1180.7189029,0.00021985,2]
[350297517,1737774647543,-1314.7214104,0.00021985,2]
[350297518,1737774647552,-1448.723918,0.00021985,2]
[350297519,1737774647562,-150.0,0.00021986,4]
[350297520,1737774647571,-5050.0,0.0002199,28]
[350297521,1737774647580,-2000.0,0.0002199,27]
[350297522,1737774647590,-4200.0,0.0002199,3]
[350297523,1737774647602,-177.1613881,0.0002199,2]
[350297524,1737774647613,-778.7113802,0.0002199,2]
[350297525,1737774647622,-119781.66781022,0.00021997,4]
[350297526,1737774647631,-2000.0,0.00021999,2]
[350297527,1737774647642,-2000.0,0.00021999,2]
[350297528,1737774647651,-2000.0,0.00021999,2]
[350297529,1737774647660,-2000.0,0.00021999,2]
[350297530,1737774647671,-2000.0,0.00021999,2]
[350297532,1737774647681,-2000.0,0.00021999,2]
[350297534,1737774647690,-2000.0,0.00021999,2]
[350297536,1737774647700,-2000.0,0.00021999,2]
[350297538,1737774647710,-15816.25,0.00021999,2]
[350297540,1737774647720,-500.0,0.00021999,2]
[350297542,1737774647729,-1000.0,0.00021999,2]
[350297544,1737774647739,-1012.96200953,0.00021999,2]
[350297546,1737774647749,-1317.68,0.00021999,2]
[350297548,1737774647758,-68358.47600477,0.00022,2]
[350297550,1737774647768,-5014.04619738,0.00022,2]
[350297552,1737774647777,-18986239.12059725,0.00022,2]
[350297555,1737774647789,-10591.17998013,0.00022,2]
[350297557,1737774647800,-8897.33288894,0.00022,2]
[350297559,1737774647812,-16131.68368021,0.00022,2]
[350297561,1737774647823,-10495.23763744,0.00022,2]
[350297564,1737774647838,-216.07360064,0.00021486,2]
[350297566,1737774647847,-85799.74526201,0.00022,2]
[350297572,1737774647896,-500.0,0.00016574,2]
[350297574,1737774647906,-455.2283,0.000177,2]
[350297576,1737774647915,-216.07360064,0.00021624,3]
[350297578,1737774647926,-216.07360064,0.00021762,3]
[350297580,1737774647935,-216.07360064,0.000219,3]
[350297582,1737774647944,-453.95003332,0.00022,2]
[350297584,1737774647961,-500.0,0.00016847,2]
[350297585,1737774647970,-112.33316523,0.00022,2]
[350297586,1737774647981,-101254.51786618,0.00022,2]
[350297587,1737774648002,-113542.67839154,0.00022,2]
[350297588,1737774648013,-3654.51377844,0.00022,2]
[350297589,1737774648024,-5291.94587916,0.00022,2]
[350297590,1737774648185,-500.0,0.00016574,2]
[350297591,1737774648196,-500.0,0.00016984,2]
[350297592,1737774648205,-518.35261905,0.00017121,2]
[350297593,1737774648216,-455.04738095,0.00022,2]
[350297594,1737774648228,-2494.99999999,0.00022,2]
[350297595,1737774648239,-854.55749319,0.00022,2]
[350297596,1737774648251,-50539.368015,0.00022,2]
[350297597,1737774648262,-17519.22885053,0.00022,2]
[350297598,1737774648307,-8650.88318621,0.00022,2]
[350297599,1737774648357,-500.0,0.00016574,2]
[350297600,1737774648368,-500.0,0.00016847,2]
[350297601,1737774648378,-500.0,0.00016984,2]
[350297602,1737774648388,-3140.31613652,0.00022,2]
[350297603,1737774648400,-1627.2,0.00022,2]
[350297604,1737774648506,-58999.35275658,0.00022,2]
[350297606,1737774648519,-984.04,0.00022,2]
[350297610,1737774648543,-560.52,0.00016574,2]
[350297611,1737774648553,-500.0,0.00017121,2]
[350297614,1737774648563,-3009.16548644,0.00022,2]
[350297629,1737775124961,181.41,0.00010137,2]
[350297633,1737775346571,176.06,0.00012329,2]
[350297634,1737775508764,1611723.31775151,0.00012,2]
[350297635,1737775508791,910596.04470222,0.00012,2]
[350297636,1737775508815,1000000.0,0.00012,2]
[350297637,1737775508840,1000000.0,0.00012,2]
[350297638,1737775508866,1000000.0,0.00012,2]
[350297639,1737775537214,275.16771606,8e-05,2]
[350297645,1737775630254,-300.0,0.00010999,2]
[350297646,1737775630274,-36.35564943,0.00011,2]
[350297654,1737775723781,16998.57864713,8e-05,2]
[350297660,1737775745086,-300.0,9.999e-05,2]
[350297661,1737775745109,-42220.40487025,0.0001,2]
[350297662,1737775750084,-8139.56849489,0.0001,2]
[350297664,1737775761103,-52528.50807778,0.0001,2]
[350297665,1737775761130,-22759.78183305,0.0001,2]
[350297666,1737775768144,-4645.33830016,0.0001,2]
[350297672,1737775774087,-4625.308352,0.0001,2]
[350297709,1737775832111,-300.0,9.999e-05,2]
[350297710,1737775832121,-1784.09225182,0.0001,2]
[350297711,1737775832166,-2751.42616261,0.0001,2]
[350297712,1737775832178,-550.62852736,0.0001,2]
[350297713,1737775832276,-97489.48910098,0.0001,2]
[350297714,1737775832287,-3214.97335,0.0001,2]
[350297715,1737775832386,-8187.98245419,0.0001,2]
[350297716,1737775832444,-7089.84544227,0.0001,2]
[350297717,1737775832456,-762.17542217,0.0001,2]
[350297729,1737775838061,-811.351313,0.0001,2]
[350297730,1737775838283,-1072.35,0.0001,2]
[350297731,1737775838295,-584.97850091,0.0001,2]
[350297734,1737775838314,-500.0,0.0001,2]
[350297738,1737775838336,-317.89171,0.0001,2]
[350297740,1737775838346,-9763.4,0.0001,2]
[350297742,1737775838357,-4827.74473643,0.0001,2]
[350297744,1737775838368,-4094.18576657,0.0001,2]
[350297746,1737775838377,-420.0,0.00010999,2]
[350297748,1737775838386,-23459.79397733,0.00011,2]
[350297750,1737775838395,-29997.0,0.00011185,2]
[350297752,1737775838404,-193.71076426,0.00011987,2]
[350297755,1737775838413,-736.96261564,0.00011987,2]
[350297757,1737775838422,-251.70915879,0.0001199,2]
[350297759,1737775838431,-11518422.47397928,0.00012,2]
[350297761,1737775838441,-218.0,0.00012099,2]
[350297763,1737775838451,-167.40245172,0.0001221,2]
[350297766,1737775838463,-165.0,0.0001231,2]
[350297768,1737775838476,-250.0,0.00012471,2]
[350297770,1737775838490,-223.20852859,0.00013778,2]
[350297773,1737775838501,-15012.0,0.00015,10]
[350297775,1737775838514,-550.0,0.00015,2]
[350297777,1737775838524,-275.52,0.00015264,2]
[350297779,1737775838534,-157.45,0.00015293,2]
[350297781,1737775838545,-200.0,0.00015556,2]
[350297784,1737775838556,-1000.0,0.00015715,2]
[350297786,1737775838568,-250.0,0.00015894,2]
[350297788,1737775838578,-150.0,0.00015933,2]
[350297790,1737775838590,-12970.52137309,0.00016,2]
[350297792,1737775838602,-500.0,0.00016438,2]
[350297795,1737775838613,-500.0,0.00016438,2]
[350297797,1737775838626,-500.0,0.00016438,2]
[350297799,1737775838637,-500.0,0.00016438,2]
[350297801,1737775838648,-500.0,0.00016438,2]
[350297804,1737775838659,-500.0,0.00016438,2]
[350297806,1737775838670,-500.0,0.00016438,2]
[350297808,1737775838680,-500.0,0.00016438,2]
[350297810,1737775838690,-500.0,0.00016438,2]
[350297812,1737775838701,-500.0,0.00016438,2]
[350297814,1737775838714,-500.0,0.00016438,2]
[350297817,1737775838726,-500.0,0.00016438,2]
[350297819,1737775838737,-500.0,0.00016438,2]
[350297821,1737775838749,-500.0,0.00016438,2]
[350297823,1737775838760,-500.0,0.00016438,2]
[350297826,1737775838772,-500.0,0.00016438,2]
[350297828,1737775838784,-500.0,0.00016438,2]
[350297830,1737775838795,-551.43,0.00016438,2]
[350297833,1737775838807,-500.0,0.00016438,2]
[350297835,1737775838819,-500.0,0.00016438,2]
[350297837,1737775838831,-500.0,0.00016438,2]
[350297839,1737775838843,-500.0,0.00016438,2]
[350297841,1737775838854,-515.81,0.00016438,2]
[350297844,1737775838867,-500.0,0.00016438,2]
[350297846,1737775838878,-500.0,0.00016438,2]
[350297848,1737775838889,-500.0,0.00016438,2]
[350297850,1737775838901,-500.0,0.00016438,2]
[350297852,1737775838912,-199.817919,0.00016438,2]
[350297854,1737775838925,-560.44018117,0.00016438,2]
[350297856,1737775838936,-500.0,0.00016438,2]
[350297858,1737775838946,-500.0,0.00016438,2]
[350297861,1737775838958,-500.0,0.00016438,2]
[350297863,1737775838972,-159.529243,0.00016438,2]
[350297865,1737775838984,-500.0,0.00016438,2]
[350297868,1737775838999,-509.60746093,0.00016438,2]
[350297870,1737775839011,-500.0,0.00016438,2]
[350297872,1737775839021,-500.0,0.00016438,2]
[350297874,1737775839033,-500.0,0.00016438,2]
[350297876,1737775839044,-500.0,0.00016438,2]
[350297879,1737775839062,-500.0,0.00016438,2]
[350297881,1737775839072,-203.07256706,0.000165,2]
[350297883,1737775839083,-203.07256706,0.000165,2]
[350297885,1737775839093,-203.07256706,0.000165,2]
[350297887,1737775839104,-203.07256706,0.000165,2]
[350297889,1737775839117,-203.07256706,0.000165,2]
[350297892,1737775839130,-203.07256706,0.000165,2]
[350297894,1737775839140,-203.07256706,0.000165,2]
[350297896,1737775839150,-203.07256706,0.000165,2]
[350297897,1737775839160,-203.07256706,0.000165,2]
[350297898,1737775839177,-203.07256706,0.000165,2]
[350297899,1737775839189,-203.07256706,0.000165,2]
[350297900,1737775839200,-1932.61,0.000165,2]
[350297901,1737775839214,-176.86,0.00016509,2]
[350297902,1737775839226,-672.2,0.00016568,2]
[350297903,1737775839237,-500.0,0.00016574,2]
[350297904,1737775839247,-500.0,0.00016574,2]
[350297905,1737775839257,-555.64494871,0.00016574,2]
[350297906,1737775839268,-500.0,0.00016574,2]
[350297907,1737775839278,-500.0,0.00016574,2]
[350297908,1737775839288,-506.98692415,0.00016574,2]
[350297909,1737775839299,-507.13848316,0.00016574,2]
[350297910,1737775839309,-500.0,0.00016574,2]
[350297911,1737775839320,-510.30409473,0.00016574,2]
[350297912,1737775839331,-500.0,0.00016574,2]
[350297913,1737775839343,-500.0,0.00016574,2]
[350297914,1737775839353,-507.41602937,0.00016574,2]
[350297915,1737775839364,-500.0,0.00016574,2]
[350297916,1737775839375,-500.0,0.00016574,2]
[350297917,1737775839386,-500.0,0.00016574,2]
[350297918,1737775839396,-500.0,0.00016574,2]
[350297919,1737775839407,-500.0,0.00016574,2]
[350297920,1737775839417,-500.0,0.00016574,2]
[350297921,1737775839427,-500.0,0.00016574,2]
[350297922,1737775839438,-500.0,0.00016574,2]
[350297923,1737775839448,-500.0,0.00016574,2]
[350297924,1737775839458,-500.0,0.00016574,2]
[350297925,1737775839469,-500.0,0.00016574,2]
[350297926,1737775839479,-500.0,0.00016574,2]
[350297927,1737775839491,-500.0,0.00016574,2]
[350297928,1737775839501,-500.0,0.00016574,2]
[350297929,1737775839512,-500.0,0.00016574,2]
[350297930,1737775839523,-500.0,0.00016574,2]
[350297931,1737775839534,-500.0,0.00016574,2]
[350297932,1737775839544,-500.0,0.00016574,2]
[350297933,1737775839555,-492.99,0.00016574,2]
[350297934,1737775839566,-500.0,0.00016574,2]
[350297935,1737775839576,-500.0,0.00016574,2]
[350297936,1737775839587,-500.0,0.00016574,2]
[350297937,1737775839597,-500.0,0.00016574,2]
[350297938,1737775839607,-500.0,0.00016574,2]
[350297939,1737775839618,-500.0,0.00016574,2]
[350297940,1737775839628,-404.29773335,0.00016574,2]
[350297941,1737775839639,-500.0,0.00016574,2]
[350297942,1737775839650,-500.0,0.00016574,2]
[350297943,1737775839661,-500.0,0.00016575,2]
[350297944,1737775839672,-500.0,0.00016575,2]
[350297945,1737775839684,-500.0,0.00016575,2]
[350297946,1737775839695,-500.0,0.00016575,2]
[350297947,1737775839706,-500.0,0.00016575,2]
[350297948,1737775839717,-500.0,0.00016575,2]
[350297949,1737775839728,-500.0,0.00016575,2]
[350297950,1737775839739,-500.0,0.00016575,2]
[350297951,1737775839751,-500.0,0.00016575,2]
[350297952,1737775839761,-500.0,0.00016575,2]
[350297953,1737775839773,-500.0,0.00016575,2]
[350297954,1737775839784,-500.0,0.00016575,2]
[350297955,1737775839795,-500.0,0.00016575,2]
[350297956,1737775839806,-500.0,0.00016575,2]
[350297957,1737775839817,-500.0,0.00016575,2]
[350297958,1737775839828,-500.0,0.00016575,2]
[350297959,1737775839839,-500.0,0.00016575,2]